[Event "World Team-ch Women 2019"]
[Site "Astana"]
[Date "2019.03.07"]
[Round "3.1"]
[White "Kosteniuk, Alexandra"]
[Black "Wafa, Shahenda"]
[Result "1-0"]
[ECO "B22"]
[WhiteElo "2545"]
[BlackElo "2175"]
[Annotator "RC"]
[PlyCount "45"]
[EventDate "2019.02.05"]
[EventType "team-tourn"]
[EventCountry "KAZ"]
[SourceTitle "playchess.com"]
[Source "ChessBase"]
[SourceQuality "1"]
[WhiteTeam "Russia"]
[BlackTeam "Egypt"]
[WhiteTeamCountry "RUS"]
[BlackTeamCountry "EGY"]
[TimeControl "40/5400+30:1800+30"]

1. e4 {[%emt 0:00:00]} c5 {[%emt 0:00:00]} 2. c3 {[%emt 0:00:00]} g6 {[%emt 0:00:32]} 3. Nf3 {[%emt 0:00:09]} Bg7 {[%emt 0:00:27]} 4. d4 {[%emt 0:00:11]} cxd4 {[%emt 0:00:38]} 5. cxd4 {[%emt 0:00:04]} d5 {[%emt 0:01:15]} 6. e5 {[%emt 0:00:08]} Nh6 {[%emt 0:01:09]} 7. Bf4 {[%emt 0:03:57]} Bg4 {[%emt 0:08:52]} 8. Bb5+ {[%emt 0:01:07]} Nc6 {[%emt 0:07:02]} 9. Bxc6+ {[%emt 0:03:06]} bxc6 {[%emt 0:01:50]} 10. Nbd2 {[%emt 0:02:38]} Qb6 {[%emt 0:07:33]} 11. h3 Bxf3 {[%emt 0:19:23]} 12. Nxf3 {[%emt 0:05:03]} Qxb2 {[%emt 0:00:34]} 13. O-O {[%emt 0:00:24]} O-O {[%emt 0:05:06]} 14. Rb1 {[%emt 0:08:05]} Qxa2 {[%emt 0:05:07]} 15. Qc1 {[%emt 0:00:22]} Nf5 {[%emt 0:00:22]} 16. g4 {[%emt 0:00:54]} Qe2 {[%emt 0:06:17]} 17. Kg2 {[%emt 0:19:43]} Nxd4 {[%emt 0:04:10]} 18. Nxd4 {[%emt 0:00:08]} Qe4+ {[%emt 0:00:05]} 19. Nf3 {[%emt 0:00:06]} d4 {[%emt 0:00:40]} 20. Rb4 {[%emt 0:02:16]} c5 {[%emt 0:00:25]} 21. Qxc5 {[%emt 0:00:41]} Qxf4 {[%emt 0:04:56]} 22. Rxd4 {[%emt 0:00:09]} Rac8 {[%emt 0:00:29]} 23. Qxe7 {[%emt 0:02:44]} 1-0

[Event "World Team-ch Women 2019"]
[Site "Astana"]
[Date "2019.03.07"]
[Round "3.4"]
[White "Ehab, Tasneem"]
[Black "Girya, Olga"]
[Result "0-1"]
[ECO "D00"]
[WhiteElo "1841"]
[BlackElo "2456"]
[Annotator "ChessBase"]
[PlyCount "84"]
[EventDate "2019.02.05"]
[EventType "team-tourn"]
[EventCountry "KAZ"]
[SourceTitle "playchess.com"]
[Source "ChessBase"]
[SourceQuality "1"]
[WhiteTeam "Egypt"]
[BlackTeam "Russia"]
[WhiteTeamCountry "EGY"]
[BlackTeamCountry "RUS"]
[TimeControl "40/5400+30:1800+30"]

1. d4 {[%emt 0:00:00]} d5 {[%emt 0:00:00]} 2. Bf4 {[%emt 0:00:00]} c5 {[%emt 0:00:00]} 3. e3 {[%emt 0:00:00]} cxd4 {[%emt 0:00:11]} 4. exd4 {[%emt 0:00:00]} Nc6 {[%emt 0:00:03]} 5. c3 {[%emt 0:00:17]} Bf5 {[%emt 0:00:54]} 6. Nf3 {[%emt 0:00:31]} e6 {[%emt 0:02:10]} 7. Bd3 {[%emt 0:00:57]} Bxd3 {[%emt 0:00:42]} 8. Qxd3 {[%emt 0:00:04]} Nge7 {[%emt 0:01:20]} 9. Nbd2 {[%emt 0:02:49]} Ng6 {[%emt 0:00:12]} 10. Bg3 {[%emt 0:01:16]} Bd6 {[%emt 0:02:03]} 11. Qe3 {[%emt 0:04:15]} O-O {[%emt 0:01:36]} 12. Ne5 {[%emt 0:04:19]} Bxe5 {[%emt 0:08:26]} 13. Bxe5 {[%emt 0:02:15]} Qb6 {[%emt 0:02:13]} 14. Bg3 {[%emt 0:07:00]} Qxb2 {[%emt 0:00:27]} 15. Rb1 {[%emt 0:06:41]} Qxa2 {[%emt 0:01:23]} 16. O-O {[%emt 0:00:53]} Qa6 17. Ra1 {[%emt 0:02:42]} Na5 {[%emt 0:04:44]} 18. Nb3 {[%emt 0:01:46]} Nc4 {[%emt 0:01:39]} 19. Qe2 {[%emt 0:05:15]} Qc6 {[%emt 0:00:18]} 20. Qc2 {[%emt 0:06:52]} a5 {[%emt 0:11:47]} 21. Rfb1 {[%emt 0:07:42]} Rfc8 {[%emt 0:02:40]} 22. Nc5 {[%emt 0:02:48]} b6 {[%emt 0:00:29]} 23. Na4 {[%emt 0:04:59]} b5 {[%emt 0:01:17]} 24. Nc5 {[%emt 0:00:56]} e5 {[%emt 0:01:14]} 25. Qd1 {[%emt 0:06:06]} f5 {[%emt 0:04:55]} 26. f3 {[%emt 0:02:27]} e4 {[%emt 0:01:19]} 27. fxe4 {[%emt 0:03:34]} dxe4 {[%emt 0:00:28]} 28. Qf1 {[%emt 0:04:10]} Nd2 {[%emt 0:03:01]} 29. Qxf5 {[%emt 0:00:31]} Nxb1 {[%emt 0:00:13]} 30. Rxb1 {[%emt 0:00:12]} Re8 {[%emt 0:00:45]} 31. Qf1 {[%emt 0:01:54]} e3 {[%emt 0:03:43]} 32. Qe2 {[%emt 0:00:28]} a4 {[%emt 0:04:05]} 33. Rxb5 {[%emt 0:06:42]} a3 {[%emt 0:00:06]} 34. Qa2+ {[%emt 0:02:16]} Kh8 {[%emt 0:00:04]} 35. Rb1 {[%emt 0:00:53]} e2 {[%emt 0:01:37]} 36. h4 {[%emt 0:05:49]} Nf4 {[%emt 0:02:14]} 37. Bxf4 {[%emt 0:02:39]} e1=Q+ {[%emt 0:00:06]} 38. Rxe1 {[%emt 0:00:13]} Rxe1+ {[%emt 0:00:01]} 39. Kh2 {[%emt 0:01:01]} Rae8 {[%emt 0:00:50]} 40. Qf7 {[%emt 0:00:00]} R1e2 {[%emt 0:00:00]} 41. d5 {[%emt 0:10:41]} Qxc5 {[%emt 0:01:12]} 42. h5 {[%emt 0:00:25]} Qf2 {[%emt 0:00:22]} 0-1

[Event "World Team-ch Women 2019"]
[Site "Astana"]
[Date "2019.03.07"]
[Round "3.9"]
[White "Tan, Zhongyi"]
[Black "Abdumalik, Zhansaya"]
[Result "1/2-1/2"]
[ECO "D70"]
[WhiteElo "2513"]
[BlackElo "2469"]
[Annotator "RC"]
[PlyCount "97"]
[EventDate "2019.02.05"]
[EventType "team-tourn"]
[EventCountry "KAZ"]
[SourceTitle "playchess.com"]
[Source "ChessBase"]
[SourceQuality "1"]
[WhiteTeam "China"]
[BlackTeam "Kazakhstan"]
[WhiteTeamCountry "CHN"]
[BlackTeamCountry "KAZ"]
[TimeControl "40/5400+30:1800+30"]

1. d4 {[%emt 0:00:00]} Nf6 {[%emt 0:00:00]} 2. c4 {[%emt 0:00:00]} g6 {[%emt 0:00:00]} 3. Nf3 {[%emt 0:00:00]} Bg7 {[%emt 0:00:14]} 4. g3 {[%emt 0:00:02]} O-O {[%emt 0:00:49]} 5. Bg2 {[%emt 0:00:05]} c5 {[%emt 0:00:17]} 6. Nc3 {[%emt 0:00:39]} cxd4 {[%emt 0:02:22]} 7. Nxd4 {[%emt 0:00:06]} Qc7 {[%emt 0:00:05]} 8. b3 {[%emt 0:01:26]} d5 {[%emt 0:00:35]} 9. Ndb5 {[%emt 0:00:08]} Qa5 {[%emt 0:02:09]} 10. Bd2 {[%emt 0:00:07]} dxc4 {[%emt 0:01:15]} 11. bxc4 {[%emt 0:00:05]} Qd8 {[%emt 0:01:13]} 12. O-O {[%emt 0:00:19]} a6 {[%emt 0:01:59]} 13. Na3 {[%emt 0:00:08]} Nc6 {[%emt 0:00:16]} 14. Rb1 {[%emt 0:04:35]} Be6 {[%emt 0:02:22]} 15. Qc1 {[%emt 0:04:26]} Rc8 {[%emt 0:07:07]} 16. Rd1 {[%emt 0:01:56]} Na5 17. Be3 {[%emt 0:27:56]} Qe8 {[%emt 0:10:25]} 18. Bb6 {[%emt 0:01:17]} Nxc4 {[%emt 0:07:32]} 19. Nxc4 {[%emt 0:01:15]} Bxc4 {[%emt 0:05:40]} 20. Bxb7 {[%emt 0:00:48]} Bxe2 {[%emt 0:02:29]} 21. Rd4 {[%emt 0:25:08]} e5 {[%emt 0:17:22]} 22. Rd2 {[%emt 0:06:43]} Bc4 {[%emt 0:02:42]} 23. Bxc8 {[%emt 0:01:15]} Qxc8 {[%emt 0:00:04]} 24. Qd1 {[%emt 0:02:34]} Be6 {[%emt 0:07:35]} 25. Rc1 {[%emt 0:00:48]} Qb7 {[%emt 0:06:02]} 26. Bc5 {[%emt 0:01:13]} Bg4 {[%emt 0:01:41]} 27. Qb3 {[%emt 0:01:14]} Qxb3 {[%emt 0:03:30]} 28. axb3 {[%emt 0:00:05]} Rc8 {[%emt 0:00:09]} 29. Be3 {[%emt 0:11:13]} h5 {[%emt 0:03:34]} 30. Rd6 {[%emt 0:00:33]} Be6 {[%emt 0:01:36]} 31. Na4 {[%emt 0:05:14]} Rxc1+ {[%emt 0:04:44]} 32. Bxc1 {[%emt 0:00:05]} Bxb3 {[%emt 0:00:03]} 33. Rxa6 {[%emt 0:01:06]} Bc4 {[%emt 0:03:26]} 34. Ra8+ {[%emt 0:00:36]} Kh7 {[%emt 0:00:05]} 35. Nc5 {[%emt 0:00:47]} Bd5 {[%emt 0:01:16]} 36. Rc8 {[%emt 0:00:14]} Bf3 {[%emt 0:02:37]} 37. Bb2 {[%emt 0:00:32]} Nd5 {[%emt 0:01:53]} 38. Nd7 {[%emt 0:01:08]} f6 {[%emt 0:00:46]} 39. Rd8 {[%emt 0:01:19]} g5 {[%emt 0:01:19]} 40. Nb8 {[%emt 0:00:00]} Ne7 {[%emt 0:00:00]} 41. Ba3 {[%emt 0:03:14]} Nf5 {[%emt 0:05:58]} 42. Nd7 {[%emt 0:01:09]} Kg6 {[%emt 0:02:06]} 43. Bf8 {[%emt 0:01:24]} Nd4 {[%emt 0:02:23]} 44. Bxg7 {[%emt 0:00:13]} Kxg7 {[%emt 0:00:04]} 45. Nb6 {[%emt 0:01:12]} g4 {[%emt 0:01:18]} 46. Nd5 {[%emt 0:02:28]} Be4 {[%emt 0:01:47]} 47. Rd7+ {[%emt 0:00:36]} Kg6 {[%emt 0:00:52]} 48. Ne7+ {[%emt 0:05:29]} Kg5 {[%emt 0:04:49]} 49. Rd8 {[%emt 0:04:04]} 1/2-1/2

[Event "World Team-ch Women 2019"]
[Site "Astana"]
[Date "2019.03.07"]
[Round "3.10"]
[White "Saduakassova, Dinara"]
[Black "Shen, Yang"]
[Result "1-0"]
[ECO "C50"]
[WhiteElo "2462"]
[BlackElo "2453"]
[Annotator "ChessBase"]
[PlyCount "105"]
[EventDate "2019.02.05"]
[EventType "team-tourn"]
[EventCountry "KAZ"]
[SourceTitle "playchess.com"]
[Source "ChessBase"]
[SourceQuality "1"]
[WhiteTeam "Kazakhstan"]
[BlackTeam "China"]
[WhiteTeamCountry "KAZ"]
[BlackTeamCountry "CHN"]
[TimeControl "40/5400+30:1800+30"]

1. e4 {[%emt 0:00:00]} e5 {[%emt 0:01:20]} 2. Nf3 {[%emt 0:00:00]} Nc6 {[%emt 0:00:21]} 3. Bc4 {[%emt 0:00:00]} Bc5 {[%emt 0:00:16]} 4. O-O {[%emt 0:00:00]} Nf6 {[%emt 0:01:36]} 5. d3 {[%emt 0:00:00]} a6 {[%emt 0:00:37]} 6. a4 {[%emt 0:03:16]} O-O {[%emt 0:03:34]} 7. h3 {[%emt 0:09:49]} h6 {[%emt 0:02:31]} 8. Re1 {[%emt 0:02:34]} d6 {[%emt 0:03:01]} 9. c3 {[%emt 0:03:06]} Be6 {[%emt 0:03:07]} 10. Nbd2 {[%emt 0:02:40]} Ba7 {[%emt 0:01:57]} 11. a5 {[%emt 0:06:15]} Re8 {[%emt 0:01:47]} 12. Bxe6 Rxe6 {[%emt 0:02:17]} 13. Nf1 {[%emt 0:12:38]} d5 {[%emt 0:09:30]} 14. Ng3 {[%emt 0:05:46]} dxe4 {[%emt 0:04:02]} 15. dxe4 {[%emt 0:00:23]} Qxd1 {[%emt 0:00:22]} 16. Rxd1 {[%emt 0:00:04]} Rd6 {[%emt 0:05:37]} 17. Rd2 {[%emt 0:05:31]} Rad8 {[%emt 0:01:06]} 18. Kf1 {[%emt 0:00:40]} h5 {[%emt 0:04:33]} 19. Rxd6 {[%emt 0:00:55]} Rxd6 {[%emt 0:00:33]} 20. Ke2 {[%emt 0:06:22]} g6 {[%emt 0:00:51]} 21. b4 {[%emt 0:01:30]} Ne8 {[%emt 0:05:38]} 22. Nf1 {[%emt 0:03:10]} Rd7 {[%emt 0:08:24]} 23. Be3 {[%emt 0:05:48]} f6 {[%emt 0:02:00]} 24. N3d2 {[%emt 0:03:05]} Nd6 {[%emt 0:03:02]} 25. Bxa7 {[%emt 0:03:38]} Nxa7 {[%emt 0:00:06]} 26. Ne3 {[%emt 0:00:26]} Nab5 {[%emt 0:04:26]} 27. Rc1 {[%emt 0:02:11]} c6 {[%emt 0:00:59]} 28. h4 {[%emt 0:02:38]} Re7 {[%emt 0:04:27]} 29. Nec4 {[%emt 0:04:16]} Nxc4 {[%emt 0:03:15]} 30. Nxc4 {[%emt 0:00:12]} Kf7 {[%emt 0:00:47]} 31. Nb6 {[%emt 0:04:38]} Ke8 {[%emt 0:02:41]} 32. Na4 {[%emt 0:03:25]} Nc7 {[%emt 0:07:25]} 33. Rd1 {[%emt 0:01:53]} Rd7 {[%emt 0:01:39]} 34. Rxd7 {[%emt 0:04:11]} Kxd7 {[%emt 0:00:01]} 35. Nc5+ {[%emt 0:00:09]} Kc8 {[%emt 0:00:07]} 36. Kd3 {[%emt 0:00:43]} Nb5 {[%emt 0:01:17]} 37. f4 {[%emt 0:02:17]} Nd6 {[%emt 0:03:28]} 38. Ne6 {[%emt 0:01:25]} Nf7 {[%emt 0:01:10]} 39. f5 {[%emt 0:02:23]} gxf5 {[%emt 0:02:20]} 40. exf5 {[%emt 0:00:00]} Nd6 {[%emt 0:00:00]} 41. Ng7 {[%emt 0:01:26]} Kd8 {[%emt 0:02:21]} 42. Nxh5 {[%emt 0:07:31]} Nxf5 {[%emt 0:00:15]} 43. Nxf6 {[%emt 0:00:04]} Nxh4 {[%emt 0:00:14]} 44. g3 {[%emt 0:00:09]} Nf5 {[%emt 0:06:14]} 45. g4 {[%emt 0:00:46]} Nd6 {[%emt 0:00:34]} 46. Ne4 {[%emt 0:04:48]} Ne8 {[%emt 0:01:50]} 47. Kc4 {[%emt 0:02:57]} Kc7 {[%emt 0:03:19]} 48. g5 {[%emt 0:01:21]} b6 {[%emt 0:02:09]} 49. g6 {[%emt 0:02:46]} Ng7 {[%emt 0:01:44]} 50. Nf6 {[%emt 0:04:44]} Kb7 {[%emt 0:10:04]} 51. axb6 {[%emt 0:02:46]} Ne6 {[%emt 0:00:51]} 52. Nd7 {[%emt 0:00:18]} Ng7 {[%emt 0:00:21]} 53. Kd3 {[%emt 0:00:27]} 1-0

[Event "World Team-ch Women 2019"]
[Site "Astana"]
[Date "2019.03.07"]
[Round "3.11"]
[White "Lei, Tingjie"]
[Black "Assaubayeva, Bibisara"]
[Result "1-0"]
[ECO "E90"]
[WhiteElo "2477"]
[BlackElo "2376"]
[Annotator "ChessBase"]
[PlyCount "67"]
[EventDate "2019.02.05"]
[EventType "team-tourn"]
[EventCountry "KAZ"]
[SourceTitle "playchess.com"]
[Source "ChessBase"]
[SourceQuality "1"]
[WhiteTeam "China"]
[BlackTeam "Kazakhstan"]
[WhiteTeamCountry "CHN"]
[BlackTeamCountry "KAZ"]
[TimeControl "40/5400+30:1800+30"]

1. d4 {[%emt 0:00:01]} Nf6 {[%emt 0:00:00]} 2. c4 {[%emt 0:00:11]} g6 {[%emt 0:00:00]} 3. Nc3 {[%emt 0:00:11]} Bg7 {[%emt 0:00:18]} 4. e4 {[%emt 0:00:22]} d6 {[%emt 0:00:07]} 5. Nf3 {[%emt 0:00:22]} O-O {[%emt 0:00:06]} 6. h3 {[%emt 0:00:05]} e5 {[%emt 0:02:04]} 7. d5 {[%emt 0:00:07]} a5 {[%emt 0:01:06]} 8. g4 {[%emt 0:00:40]} Na6 {[%emt 0:04:34]} 9. Be3 {[%emt 0:00:29]} Nd7 10. a3 Nac5 {[%emt 0:05:12]} 11. Rg1 {[%emt 0:01:33]} a4 {[%emt 0:04:37]} 12. Nd2 c6 {[%emt 0:01:56]} 13. Qc2 {[%emt 0:02:19]} Qa5 {[%emt 0:04:12]} 14. O-O-O {[%emt 0:05:35]} Nf6 {[%emt 0:10:38]} 15. Be2 {[%emt 0:23:03]} cxd5 {[%emt 0:03:04]} 16. exd5 Bd7 17. g5 {[%emt 0:06:54]} Bf5 {[%emt 0:08:44]} 18. Qxf5 {[%emt 0:04:06]} Nfe4 {[%emt 0:00:32]} 19. Qxe4 {[%emt 0:00:48]} Nxe4 {[%emt 0:00:06]} 20. Ndxe4 {[%emt 0:00:06]} Rfd8 {[%emt 0:01:33]} 21. Nb5 {[%emt 0:01:23]} Bf8 {[%emt 0:05:46]} 22. h4 {[%emt 0:00:43]} Rac8 {[%emt 0:02:56]} 23. Kb1 {[%emt 0:00:08]} Be7 {[%emt 0:05:23]} 24. h5 {[%emt 0:01:19]} Kg7 {[%emt 0:05:06]} 25. Rdf1 {[%emt 0:09:39]} Rd7 {[%emt 0:04:45]} 26. f4 {[%emt 0:01:12]} Qa6 {[%emt 0:05:03]} 27. f5 {[%emt 0:01:41]} gxf5 {[%emt 0:00:11]} 28. Rxf5 {[%emt 0:00:03]} Bd8 {[%emt 0:00:45]} 29. h6+ {[%emt 0:04:00]} Kh8 {[%emt 0:00:25]} 30. Rgf1 {[%emt 0:00:23]} Kg8 {[%emt 0:02:50]} 31. Bh5 {[%emt 0:01:21]} f6 {[%emt 0:06:37]} 32. Nxf6+ {[%emt 0:01:44]} Bxf6 {[%emt 0:00:02]} 33. Rxf6 {[%emt 0:00:09]} Rdd8 {[%emt 0:01:47]} 34. Bg4 {[%emt 0:00:44]} 1-0

[Event "World Team-ch Women 2019"]
[Site "Astana"]
[Date "2019.03.07"]
[Round "3.12"]
[White "Nakhbayeva, Guliskhan"]
[Black "Ding, Yixin"]
[Result "0-1"]
[ECO "D90"]
[WhiteElo "2295"]
[BlackElo "2432"]
[Annotator "NA"]
[PlyCount "68"]
[EventDate "2019.02.05"]
[EventType "team-tourn"]
[EventCountry "KAZ"]
[SourceTitle "playchess.com"]
[Source "ChessBase"]
[SourceQuality "1"]
[WhiteTeam "Kazakhstan"]
[BlackTeam "China"]
[WhiteTeamCountry "KAZ"]
[BlackTeamCountry "CHN"]
[TimeControl "40/5400+30:1800+30"]

1. d4 {[%emt 0:00:00]} Nf6 {[%emt 0:00:00]} 2. c4 {[%emt 0:00:00]} g6 {[%emt 0:00:00]} 3. Nc3 {[%emt 0:00:00]} d5 {[%emt 0:00:03]} 4. Nf3 {[%emt 0:00:15]} Bg7 {[%emt 0:00:13]} 5. h4 {[%emt 0:00:16]} dxc4 {[%emt 0:07:23]} 6. e4 {[%emt 0:00:19]} Bg4 {[%emt 0:07:43]} 7. Bxc4 {[%emt 0:10:00]} O-O {[%emt 0:07:21]} 8. Be3 {[%emt 0:05:16]} c5 $14 {[%emt 0:13:53]} 9. dxc5 {[%emt 0:13:06]} Qa5 {[%emt 0:14:48]} 10. O-O {[%emt 0:09:13]} Nc6 {[%emt 0:10:52]} 11. Qc2 {[%emt 0:06:17]} Bxf3 {[%emt 0:07:40]} 12. gxf3 {[%emt 0:01:35]} Nd7 {[%emt 0:00:02]} 13. a3 {[%emt 0:15:09]} Nd4 {[%emt 0:07:10]} 14. Bxd4 {[%emt 0:01:09]} Bxd4 {[%emt 0:00:06]} 15. b4 {[%emt 0:00:29]} Qc7 {[%emt 0:00:54]} 16. Kg2 {[%emt 0:01:38]} Qf4 {[%emt 0:11:39]} 17. Nd5 {[%emt 0:11:06]} Qxh4 {[%emt 0:01:30]} 18. Qd2 {[%emt 0:00:26]} Bxa1 {[%emt 0:01:05]} 19. Rh1 {[%emt 0:00:09]} Bc3 {[%emt 0:04:29]} 20. Qc1 {[%emt 0:09:39]} Bb2 {[%emt 0:00:50]} 21. Qd2 {[%emt 0:00:27]} Bc3 {[%emt 0:00:01]} 22. Nxc3 {[%emt 0:00:18]} Qf6 {[%emt 0:00:07]} 23. Nd5 {[%emt 0:00:06]} Qe5 {[%emt 0:00:22]} 24. Qh6 {[%emt 0:00:14]} Qg7 {[%emt 0:00:07]} 25. Nxe7+ {[%emt 0:00:11]} Kh8 {[%emt 0:00:01]} 26. Qe3 {[%emt 0:04:06]} Ne5 {[%emt 0:00:47]} 27. Bb3 {[%emt 0:01:44]} f5 {[%emt 0:01:18]} 28. Qg5 {[%emt 0:03:52]} Rae8 {[%emt 0:01:30]} 29. Nd5 {[%emt 0:00:32]} fxe4 {[%emt 0:00:44]} 30. fxe4 {[%emt 0:01:26]} Nd3 {[%emt 0:00:51]} 31. Rf1 {[%emt 0:05:55]} Qb2 {[%emt 0:02:55]} 32. Qe3 {[%emt 0:00:25]} Qxb3 {[%emt 0:01:29]} 33. Qd4+ {[%emt 0:00:04]} Ne5 {[%emt 0:00:07]} 34. f4 {[%emt 0:01:01]} Qd3 {[%emt 0:00:11]} 0-1

[Event "World Team-ch Women 2019"]
[Site "Astana"]
[Date "2019.03.07"]
[Round "3.13"]
[White "Abrahamyan, Tatev"]
[Black "Khotenashvili, Bela"]
[Result "0-1"]
[ECO "B13"]
[WhiteElo "2377"]
[BlackElo "2474"]
[Annotator "ChessBase"]
[PlyCount "62"]
[EventDate "2019.02.05"]
[EventType "team-tourn"]
[EventCountry "KAZ"]
[SourceTitle "playchess.com"]
[Source "ChessBase"]
[SourceQuality "1"]
[WhiteTeam "United States"]
[BlackTeam "Georgia"]
[WhiteTeamCountry "USA"]
[BlackTeamCountry "GEO"]
[TimeControl "40/5400+30:1800+30"]

1. e4 {[%emt 0:00:00]} c6 {[%emt 0:00:00]} 2. d4 {[%emt 0:00:00]} d5 {[%emt 0:00:00]} 3. exd5 {[%emt 0:00:00]} cxd5 {[%emt 0:00:00]} 4. Nf3 {[%emt 0:00:00]} Nc6 {[%emt 0:01:02]} 5. Bb5 {[%emt 0:00:15]} Qa5+ {[%emt 0:15:34]} 6. Nc3 {[%emt 0:00:43]} Bg4 {[%emt 0:01:58]} 7. h3 {[%emt 0:05:12]} Bxf3 {[%emt 0:00:45]} 8. Qxf3 {[%emt 0:00:23]} e6 {[%emt 0:06:51]} 9. O-O {[%emt 0:05:42]} Nf6 {[%emt 0:01:48]} 10. Qg3 {[%emt 0:10:46]} Rc8 11. Bd2 {[%emt 0:16:15]} Qb6 {[%emt 0:16:44]} 12. Rae1 {[%emt 0:08:25]} Qxd4 {[%emt 0:22:26]} 13. Bd3 {[%emt 0:12:54]} Qc5 {[%emt 0:16:15]} 14. Kh1 {[%emt 0:14:39]} a6 {[%emt 0:00:44]} 15. f4 {[%emt 0:06:18]} Qd6 {[%emt 0:00:42]} 16. a3 {[%emt 0:00:57]} g6 {[%emt 0:03:03]} 17. Qf2 {[%emt 0:07:02]} Bg7 {[%emt 0:02:57]} 18. Ne2 {[%emt 0:02:32]} O-O {[%emt 0:02:01]} 19. Ng1 {[%emt 0:00:27]} Ne4 {[%emt 0:02:51]} 20. Bxe4 {[%emt 0:01:26]} dxe4 {[%emt 0:00:01]} 21. Rxe4 {[%emt 0:00:08]} Bxb2 {[%emt 0:00:32]} 22. c3 {[%emt 0:02:18]} Ne7 {[%emt 0:02:52]} 23. c4 {[%emt 0:01:45]} Qxa3 {[%emt 0:01:01]} 24. Rb1 {[%emt 0:01:40]} Bg7 {[%emt 0:01:13]} 25. Rxb7 {[%emt 0:01:22]} Nf5 {[%emt 0:00:14]} 26. Nf3 {[%emt 0:00:22]} Nd6 {[%emt 0:00:29]} 27. Re3 {[%emt 0:00:25]} Qa2 {[%emt 0:00:22]} 28. Rd7 {[%emt 0:01:07]} Nxc4 {[%emt 0:00:13]} 29. Re2 {[%emt 0:00:10]} Qa4 {[%emt 0:00:42]} 30. Ra7 {[%emt 0:00:41]} Nxd2 {[%emt 0:00:13]} 31. Rxd2 {[%emt 0:00:19]} Qxf4 {[%emt 0:00:20]} 0-1

[Event "World Team-ch Women 2019"]
[Site "Astana"]
[Date "2019.03.07"]
[Round "3.14"]
[White "Javakhishvili, Lela"]
[Black "Nemcova, Katerina"]
[Result "1-0"]
[ECO "D37"]
[WhiteElo "2455"]
[BlackElo "2315"]
[Annotator "ChessBase"]
[PlyCount "75"]
[EventDate "2019.02.05"]
[EventType "team-tourn"]
[EventCountry "KAZ"]
[SourceTitle "playchess.com"]
[Source "ChessBase"]
[SourceQuality "1"]
[WhiteTeam "Georgia"]
[BlackTeam "United States"]
[WhiteTeamCountry "GEO"]
[BlackTeamCountry "USA"]
[TimeControl "40/5400+30:1800+30"]

1. d4 {[%emt 0:00:00]} e6 {[%emt 0:00:00]} 2. c4 {[%emt 0:00:00]} d5 {[%emt 0:00:24]} 3. Nf3 {[%emt 0:00:47]} Nf6 {[%emt 0:01:05]} 4. Nc3 {[%emt 0:00:07]} Be7 {[%emt 0:02:11]} 5. Bf4 {[%emt 0:02:32]} O-O {[%emt 0:06:56]} 6. e3 {[%emt 0:00:09]} a6 {[%emt 0:04:22]} 7. cxd5 {[%emt 0:03:23]} exd5 {[%emt 0:00:57]} 8. Bd3 {[%emt 0:00:59]} c5 {[%emt 0:04:07]} 9. dxc5 {[%emt 0:00:31]} Bxc5 {[%emt 0:05:31]} 10. O-O {[%emt 0:02:17]} Nc6 {[%emt 0:02:08]} 11. Rc1 {[%emt 0:00:42]} Bd6 {[%emt 0:08:23]} 12. Bg5 Be6 {[%emt 0:11:09]} 13. Bb1 {[%emt 0:08:04]} Be7 {[%emt 0:01:50]} 14. Nd4 {[%emt 0:10:41]} Nxd4 {[%emt 0:04:41]} 15. Qxd4 {[%emt 0:00:29]} Rc8 {[%emt 0:02:52]} 16. Qd3 {[%emt 0:04:19]} g6 {[%emt 0:01:23]} 17. Rfd1 {[%emt 0:02:49]} Re8 {[%emt 0:05:10]} 18. Bc2 {[%emt 0:05:52]} Bg4 {[%emt 0:11:00]} 19. f3 {[%emt 0:13:24]} Be6 {[%emt 0:04:31]} 20. Bb3 {[%emt 0:03:42]} Kg7 {[%emt 0:06:37]} 21. Bf4 {[%emt 0:05:41]} Bf5 {[%emt 0:01:24]} 22. Qd2 {[%emt 0:01:46]} Be6 {[%emt 0:06:36]} 23. Be5 {[%emt 0:02:48]} Bd6 {[%emt 0:01:03]} 24. Bd4 {[%emt 0:02:03]} Bc5 {[%emt 0:00:24]} 25. Bxc5 {[%emt 0:06:23]} Rxc5 {[%emt 0:00:03]} 26. e4 {[%emt 0:01:59]} d4 {[%emt 0:05:55]} 27. Bxe6 {[%emt 0:02:42]} Rxe6 {[%emt 0:00:22]} 28. Qxd4 {[%emt 0:00:10]} Qxd4+ {[%emt 0:00:39]} 29. Rxd4 {[%emt 0:00:02]} h5 {[%emt 0:00:34]} 30. h4 {[%emt 0:02:17]} Rec6 {[%emt 0:00:29]} 31. Rcd1 {[%emt 0:01:14]} b5 {[%emt 0:01:06]} 32. a4 {[%emt 0:03:47]} Kf8 {[%emt 0:01:06]} 33. axb5 {[%emt 0:01:26]} axb5 {[%emt 0:00:01]} 34. Rd8+ {[%emt 0:00:26]} Ke7 {[%emt 0:00:39]} 35. Rb8 {[%emt 0:00:16]} Rc8 {[%emt 0:00:33]} 36. Rb7+ {[%emt 0:00:48]} R8c7 {[%emt 0:00:19]} 37. Rxc7+ {[%emt 0:00:31]} Rxc7 {[%emt 0:00:06]} 38. e5 {[%emt 0:00:08]} 1-0